bitfinex/quotes_ETHUSD_20250913
["timestamp","ask_amount","ask_price","bid_price","bid_amount"]
[1757742283733,29.96956287,4717.5,4717.4,41.04509527]
[1757742283909,31.08256287,4717.5,4717.4,41.04509527]
[1757742284093,31.08256287,4717.5,4717.4,24.61449327]
[1757742284298,30.18656287,4717.5,4717.4,40.03009527]
[1757742284937,21.96674287,4717.5,4717.4,31.79927527]
[1757742285136,23.19674287,4717.5,4717.4,31.79927527]
[1757742285717,23.19674287,4717.5,4717.4,35.60611028]
[1757742286419,23.19674287,4717.5,4717.4,31.79927527]
[1757742286620,24.42674287,4717.5,4717.4,35.6037967]
[1757742287840,24.42674287,4717.5,4717.4,32.3759967]
[1757742288142,25.65674287,4717.5,4717.4,32.3759967]
[1757742289143,25.65674287,4717.5,4717.4,28.8409967]
[1757742289318,26.88674287,4717.5,4717.4,35.0640967]
[1757742290211,26.88674287,4717.5,4717.4,34.7780967]
[1757742290448,26.88674287,4717.5,4717.4,58.3162147]
[1757742290649,28.11674287,4717.5,4717.4,58.3162147]
[1757742292058,29.34674287,4717.5,4717.4,58.3162147]
[1757742293439,30.57674287,4717.5,4717.4,58.3162147]
[1757742294148,26.33674287,4717.5,4717.4,58.3162147]
[1757742294677,24.21674287,4717.5,4717.4,54.51169327]
[1757742294982,25.44674287,4717.5,4717.4,54.51169327]
[1757742296078,25.44674287,4717.5,4717.4,47.85169327]
[1757742296245,26.67674287,4717.5,4717.4,51.38469327]
[1757742296759,26.67674287,4717.5,4717.4,54.51169327]
[1757742297874,27.90674287,4717.5,4717.4,54.51169327]
[1757742299152,29.13674287,4717.5,4717.4,54.51169327]
[1757742299947,28.26465716,4717.5,4717.4,54.51169327]
[1757742300554,29.49465716,4717.5,4717.4,54.22569327]
[1757742301155,29.49465716,4717.5,4717.4,47.85169327]
[1757742301349,29.49465716,4717.5,4717.4,51.38369327]
[1757742301891,30.72465716,4717.5,4717.4,51.38369327]
[1757742303291,31.95465716,4717.5,4717.4,51.38369327]
[1757742304662,33.18465716,4717.5,4717.4,51.38369327]
[1757742306393,34.41465716,4717.5,4717.4,51.38369327]
[1757742307798,35.64465716,4717.5,4717.4,51.38369327]
[1757742308797,35.64465716,4717.5,4717.4,55.18948217]
[1757742308969,36.87465716,4717.5,4717.4,54.39748217]
[1757742309171,24.15465716,4717.5,4717.4,50.61071041]
[1757742309397,22.03465716,4717.5,4717.4,54.14171041]
[1757742309607,19.91465716,4717.5,4717.4,50.33592151]
[1757742310688,21.14465716,4717.5,4717.4,50.33592151]
[1757742311459,21.14465716,4717.5,4717.4,50.59069327]
[1757742312004,22.37465716,4717.5,4717.4,50.59069327]
[1757742313441,23.60465716,4717.5,4717.4,50.59069327]
[1757742314638,23.60465716,4717.5,4717.4,47.05969327]
[1757742314798,23.60465716,4717.5,4717.4,50.59069327]
[1757742314799,24.83465716,4717.5,4717.4,50.59069327]
[1757742316139,26.06465716,4717.5,4717.4,50.59069327]
[1757742316508,26.06465716,4717.5,4717.4,47.05969327]
[1757742316701,26.06465716,4717.5,4717.4,50.33592151]
[1757742317507,27.29465716,4717.5,4717.4,50.33592151]
[1757742318030,27.29665716,4717.5,4717.4,50.33592151]
[1757742318224,27.29665716,4717.5,4717.4,50.59069327]
[1757742319442,28.52665716,4717.5,4717.4,50.59069327]
[1757742320900,29.75665716,4717.5,4717.4,50.59069327]
[1757742322341,30.98665716,4717.5,4717.4,50.59069327]
[1757742323568,30.98665716,4717.5,4717.4,50.80229327]
[1757742323867,32.21665716,4717.5,4717.4,50.59069327]
[1757742324032,32.21665716,4717.5,4717.4,50.88379327]
[1757742324237,32.21665716,4717.5,4717.4,53.73159327]
[1757742325149,33.44665716,4717.5,4717.4,53.73159327]
[1757742326375,33.44665716,4717.5,4717.4,50.20059327]
[1757742326577,34.67665716,4717.5,4717.4,53.73059327]
[1757742328467,35.90665716,4717.5,4717.4,53.73059327]
[1757742329840,37.13665716,4717.5,4717.4,53.73059327]
[1757742330978,37.13665716,4717.5,4717.4,53.46429995]
[1757742331192,38.36665716,4717.5,4717.4,53.46429995]
[1757742332691,39.59665716,4717.5,4717.4,53.46429995]
[1757742333105,39.59665716,4717.5,4717.4,23.46429995]
[1757742333254,39.59665716,4717.5,4717.4,53.46429995]
[1757742334077,40.82665716,4717.5,4717.4,23.46429995]
[1757742334279,40.82665716,4717.5,4717.4,53.46429995]
[1757742336001,42.05665716,4717.5,4717.4,53.46429995]
[1757742336882,42.05665716,4717.5,4717.4,53.17119995]
[1757742337194,42.05665716,4717.5,4717.4,50.32339995]
[1757742337395,43.28665716,4717.5,4717.4,50.58968707]
[1757742338821,44.51665716,4717.5,4717.4,50.58968707]
[1757742340338,45.74665716,4717.5,4717.4,50.58968707]
[1757742341130,45.74665716,4717.5,4717.4,51.05008707]
[1757742341306,45.74665716,4717.5,4717.4,21.05008707]
[1757742341631,45.74665716,4717.5,4717.4,51.05008707]
[1757742341928,46.97665716,4717.5,4717.4,53.43748707]
[1757742342323,46.97665716,4717.5,4717.4,53.73058707]
[1757742343332,48.20665716,4717.5,4717.4,53.73058707]
[1757742344850,49.43665716,4717.5,4717.4,53.73058707]
[1757742345646,49.43665716,4717.5,4717.4,53.43748707]
[1757742346344,50.66665716,4717.5,4717.4,53.43748707]
[1757742346651,50.66665716,4717.5,4717.4,23.43748707]
[1757742346843,50.66665716,4717.5,4717.4,53.43748707]
[1757742347044,50.66665716,4717.5,4717.4,53.73738707]
[1757742347817,51.89665716,4717.5,4717.4,53.73738707]
[1757742349448,53.12665716,4717.5,4717.4,53.73738707]
[1757742350964,54.35665716,4717.5,4717.4,50.58968707]
[1757742351558,54.35665716,4717.5,4717.4,46.80491531]
[1757742351759,54.35665716,4717.5,4717.4,50.33391531]
[1757742351959,54.35665716,4717.5,4717.4,46.80491531]
[1757742352131,54.35665716,4717.5,4717.4,50.33391531]
[1757742353656,54.35665716,4717.5,4717.4,50.58868707]
[1757742354359,54.35665716,4717.5,4717.4,47.05968707]
[1757742354664,54.35665716,4717.5,4717.4,50.58768707]
[1757742354873,54.35665716,4717.5,4717.4,51.06088707]
[1757742356137,54.35665716,4717.5,4717.4,50.58768707]
[1757742356462,54.35665716,4717.5,4717.4,53.62088707]
[1757742359640,54.35665716,4717.5,4717.4,47.05968707]
[1757742359844,54.35665716,4717.5,4717.4,53.14768707]
[1757742360145,54.35665716,4717.5,4717.4,53.62088707]
[1757742360979,54.35665716,4717.5,4717.4,23.62088707]
[1757742361157,54.35665716,4717.5,4717.4,53.62088707]
[1757742363184,54.35665716,4717.5,4717.4,23.62088707]
[1757742363386,54.35665716,4717.5,4717.4,53.62088707]
[1757742363549,54.35665716,4717.5,4717.4,43.95408707]
[1757742363890,56.51655435,4717.5,4717.4,46.96102819]
[1757742364499,56.51655435,4717.5,4717.4,43.43302819]
[1757742364699,56.51655435,4717.5,4717.4,46.96102819]
[1757742364853,56.51655435,4717.5,4717.4,49.96102819]
[1757742368276,56.51655435,4717.5,4717.4,19.96102819]
[1757742368601,56.51655435,4717.5,4717.4,49.96102819]
[1757742374422,56.51655435,4717.5,4717.4,40.34145926]
[1757742374638,56.51655435,4717.5,4717.4,43.86945926]
[1757742378054,56.51655435,4717.5,4717.4,44.39051814]
[1757742378336,54.35665716,4717.5,4717.4,44.39051814]
[1757742380406,54.35665716,4717.5,4717.4,47.21001814]
[1757742381538,54.35665716,4717.5,4717.4,47.49921814]
[1757742383245,54.35665716,4717.5,4717.4,41.31761814]
[1757742383544,54.35665716,4717.5,4717.4,44.38951814]
[1757742384039,54.35665716,4717.5,4717.4,44.84461814]
[1757742384246,54.35665716,4717.5,4717.4,44.12323102]
[1757742384999,54.35665716,4717.5,4717.4,40.59623102]
[1757742385206,54.35665716,4717.5,4717.4,44.12323102]
[1757742385550,54.35665716,4717.5,4717.4,47.23193102]
[1757742385705,54.35665716,4717.5,4717.4,47.60381814]
[1757742387130,54.35665716,4717.5,4717.4,17.60381814]
[1757742387336,54.35665716,4717.5,4717.4,47.60381814]
[1757742395972,54.35665716,4717.5,4717.4,46.85951814]
[1757742396200,54.35665716,4717.5,4717.4,43.97405926]
[1757742397893,54.35665716,4717.5,4717.4,40.44705926]
[1757742398215,54.35665716,4717.5,4717.4,43.97305926]
[1757742398420,54.35665716,4717.5,4717.4,13.97305926]
[1757742398606,54.35665716,4717.5,4717.4,43.97305926]
[1757742400455,54.35665716,4717.5,4717.4,44.42815926]
[1757742401433,54.35665716,4717.5,4717.4,46.79255926]
[1757742402598,54.35665716,4717.5,4717.4,43.97305926]
[1757742403153,54.35665716,4717.5,4717.4,47.23093102]
[1757742403351,54.35665716,4717.5,4717.4,47.49721814]
[1757742403524,54.35665716,4717.5,4717.4,43.97121814]
[1757742403849,54.35665716,4717.5,4717.4,47.24244638]
[1757742404354,54.35665716,4717.5,4717.4,47.49721814]
[1757742404659,54.35665716,4717.5,4717.4,17.49721814]
[1757742404817,54.35665716,4717.5,4717.4,47.49721814]
[1757742405231,54.35665716,4717.5,4717.4,46.97615926]
[1757742407331,54.35665716,4717.5,4717.4,43.45015926]
[1757742407534,54.35665716,4717.5,4717.4,47.24244638]
[1757742408737,54.35665716,4717.5,4717.4,47.49721814]
[1757742413345,54.35665716,4717.5,4717.4,47.60281814]
[1757742417665,55.33273958,4717.5,4717.4,47.82337867]
[1757742418649,55.33273958,4717.5,4717.4,47.82237867]
[1757742421995,55.33273958,4717.5,4717.4,47.55609155]
[1757742426800,55.33273958,4717.5,4717.4,47.33553102]
[1757742427387,55.33273958,4717.5,4717.4,17.33553102]
[1757742427589,55.33273958,4717.5,4717.4,47.33553102]
[1757742428111,55.33273958,4717.5,4717.4,46.62465926]
[1757742428325,55.33273958,4717.5,4717.4,43.97105926]
[1757742430216,55.33273958,4717.5,4717.4,40.44705926]
[1757742430436,55.07881987,4717.5,4717.4,43.97105926]
[1757742431685,55.07881987,4717.5,4717.4,40.44705926]
[1757742431887,55.07881987,4717.5,4717.4,43.97105926]
[1757742432394,55.07881987,4717.5,4717.4,13.97105926]
[1757742432725,55.07881987,4717.5,4717.4,40.44705926]
[1757742432929,55.07881987,4717.5,4717.4,43.97105926]
[1757742433489,55.07881987,4717.5,4717.4,40.44705926]
[1757742433726,55.07881987,4717.5,4717.4,43.97105926]
[1757742435115,55.07881987,4717.5,4717.4,40.44705926]
[1757742435445,55.07881987,4717.5,4717.4,44.25499769]
[1757742436517,55.07881987,4717.5,4717.4,14.25499769]
[1757742436722,55.07881987,4717.5,4717.4,44.25499769]
[1757742436922,55.07881987,4717.5,4717.4,44.52128481]
[1757742438097,55.07881987,4717.5,4717.4,47.40938481]
[1757742439193,55.07881987,4717.5,4717.4,47.72378481]
[1757742443836,54.82489577,4717.5,4717.4,47.72378481]
[1757742444066,54.82489577,4717.5,4717.4,47.67378481]
[1757742444562,54.82489577,4717.5,4717.4,47.67278481]
[1757742445131,54.82489577,4717.5,4717.4,47.35838481]
[1757742445338,54.82489577,4717.5,4717.4,44.92088481]
[1757742445885,54.82489577,4717.5,4717.4,17.35838481]
[1757742446080,54.82489577,4717.5,4717.4,47.35838481]
[1757742446865,54.82489577,4717.5,4717.4,17.35838481]
[1757742447044,54.82489577,4717.5,4717.4,47.35838481]
[1757742448462,54.82489577,4717.5,4717.4,47.67278481]
[1757742450971,54.82489577,4717.5,4717.4,17.67278481]
[1757742451173,54.82489577,4717.5,4717.4,47.67278481]
[1757742453147,54.82489577,4717.5,4717.4,44.14978481]
[1757742453350,54.82489577,4717.5,4717.4,47.67278481]
[1757742455158,54.82489577,4717.5,4717.4,44.14978481]
[1757742455360,54.82489577,4717.5,4717.4,46.86073138]
[1757742455683,54.57098002,4717.5,4717.4,47.31133138]
[1757742455889,54.57098002,4717.5,4717.4,47.58712147]
[1757742463594,54.57098002,4717.5,4717.4,47.31133138]
[1757742464306,54.57098002,4717.5,4717.4,47.31033138]
[1757742465194,54.57098002,4717.5,4717.4,40.58583138]
[1757742465498,54.57098002,4717.5,4717.4,44.21343138]
[1757742465661,54.57098002,4717.5,4717.4,40.69143138]
[1757742465862,54.57098002,4717.5,4717.4,47.34883138]
[1757742466252,54.31706709,4717.5,4717.4,47.34883138]
[1757742466478,54.31706709,4717.5,4717.4,17.34883138]
[1757742466807,54.31706709,4717.5,4717.4,47.03243138]
[1757742468912,54.31706709,4717.5,4717.4,47.32943138]
[1757742469611,54.31706709,4717.5,4717.4,47.60522147]
[1757742470876,54.31706709,4717.5,4717.4,44.21343138]
[1757742471581,54.31706709,4717.5,4717.4,44.67533138]
[1757742472510,54.31706709,4717.5,4717.4,44.21343138]
[1757742474121,54.31706709,4717.5,4717.4,40.69143138]
[1757742474443,54.31706709,4717.5,4717.4,44.21343138]
[1757742475857,54.68765549,4717.5,4717.4,40.69143138]
[1757742476068,54.68765549,4717.5,4717.4,41.21343138]
[1757742476559,54.68765549,4717.5,4717.4,44.21343138]
[1757742478102,54.68765549,4717.5,4717.4,14.21343138]
[1757742478342,54.68765549,4717.5,4717.4,44.21343138]
[1757742479711,54.68765549,4717.5,4717.4,44.10783138]
[1757742482012,54.68765549,4717.5,4717.4,43.81345926]
[1757742482344,54.79325549,4717.5,4717.4,43.81345926]
[1757742483050,54.79325549,4717.5,4717.4,40.178]
[1757742483208,54.79325549,4717.5,4717.4,43.178]
[1757742483408,54.79325549,4717.5,4717.4,40.178]
[1757742484441,54.79325549,4717.5,4717.4,43.178]
[1757742486309,54.79325549,4717.5,4717.4,13.178]
[1757742486513,54.79325549,4717.5,4717.4,43.178]
[1757742489620,54.79325549,4717.5,4717.4,13.178]
[1757742489826,54.79325549,4717.5,4717.4,43.178]
[1757742491066,54.79325549,4717.5,4717.4,46.76496221]
[1757742491557,54.79325549,4717.5,4717.4,46.46796221]
[1757742491743,54.79325549,4717.5,4717.4,44.84563322]
[1757742492126,54.79325549,4717.5,4717.4,40.86173322]
[1757742492327,54.79325549,4717.5,4717.4,44.38373322]
[1757742496122,54.79325549,4717.5,4717.4,14.38373322]
[1757742496327,54.79325549,4717.5,4717.4,44.38373322]
[1757742497489,54.79325549,4717.5,4717.4,47.45143322]
[1757742498228,54.79325549,4717.5,4717.4,47.14343322]
[1757742499128,54.79325549,4717.5,4717.4,47.45143322]
[1757742502219,54.42266709,4717.5,4717.4,17.45143322]
[1757742502399,54.42266709,4717.5,4717.4,47.45143322]
[1757742503192,54.42266709,4717.5,4717.4,44.38373322]
[1757742503710,54.42266709,4717.5,4717.4,44.38273322]
[1757742503899,55.51375601,4717.5,4717.4,44.38273322]
[1757742506355,54.42266709,4717.5,4717.4,47.00183322]
[1757742506556,54.42266709,4717.5,4717.4,47.45043322]
[1757742506774,54.42266709,4717.5,4717.4,47.14243322]
[1757742507433,54.42266709,4717.5,4717.4,46.69383322]
[1757742509227,54.42266709,4717.5,4717.4,44.38273322]
[1757742509426,55.45478493,4717.5,4717.4,44.38273322]
[1757742509662,55.45478493,4717.5,4717.4,14.38273322]
[1757742509833,55.45478493,4717.5,4717.4,44.38273322]
[1757742510529,55.45478493,4717.5,4717.4,47.14243322]
[1757742511048,55.45478493,4717.5,4717.4,47.45043322]
[1757742512638,55.45478493,4717.5,4717.4,46.69383322]
[1757742513334,55.45478493,4717.5,4717.4,44.38273322]
[1757742514559,55.45478493,4717.5,4717.4,44.10694313]
[1757742514750,55.45478493,4717.5,4717.4,40.58594313]
[1757742514950,55.45478493,4717.5,4717.4,44.10694313]
[1757742516780,55.45478493,4717.5,4717.4,40.58594313]
[1757742516941,55.45478493,4717.5,4717.4,44.10694313]
[1757742518841,55.45478493,4717.5,4717.4,40.58594313]
[1757742519056,55.45478493,4717.5,4717.4,44.10694313]
[1757742519595,55.45478493,4717.5,4717.4,40.58594313]
[1757742519771,55.45478493,4717.5,4717.4,43.81257101]
[1757742520958,55.45478493,4717.5,4717.4,13.81257101]
[1757742521295,55.45478493,4717.5,4717.4,43.81257101]
[1757742521992,55.45478493,4717.5,4717.4,10.29157101]
[1757742522198,55.45478493,4717.5,4717.4,43.81257101]
[1757742523597,55.45478493,4717.5,4717.4,40.29157101]
[1757742523770,55.45478493,4717.5,4717.4,43.81257101]
[1757742531531,55.45478493,4717.5,4717.4,13.81257101]
[1757742531815,56.24678493,4717.5,4717.4,39.656]
[1757742532188,56.24678493,4717.5,4717.4,43.176]
[1757742537744,56.24678493,4717.5,4717.4,39.656]
[1757742537986,56.24678493,4717.5,4717.4,43.176]
[1757742540517,56.24678493,4717.5,4717.4,6.656]
[1757742540815,56.24678493,4717.5,4717.3,1.625]
[1757742540816,0.792,4717.4,4717.3,1.625]
[1757742541160,3.019,4717.4,4717.3,8.145]
[1757742541318,2.95189719,4717.4,4717.3,8.145]
[1757742541518,5.17889719,4717.4,4717.3,8.145]
[1757742542173,5.17889719,4717.4,4717.3,5.145]
[1757742546086,5.17889719,4717.4,4717.3,1.625]
[1757742546243,5.17889719,4717.4,4717.3,5.145]
[1757742547567,5.17889719,4717.4,4717.3,1.625]
[1757742547764,5.17889719,4717.4,4717.3,5.145]
[1757742549685,5.18089719,4717.4,4717.3,5.145]
[1757742550372,5.81675917,4717.4,4717.3,5.145]
[1757742552781,5.81675917,4717.4,4717.3,5.146]
[1757742555675,5.81675917,4717.4,4717.3,1.625]
[1757742555874,5.81675917,4717.4,4717.3,7.7981]
[1757742556269,5.81675917,4717.4,4717.3,7.3387]
[1757742556489,5.81675917,4717.4,4717.3,7.7981]
[1757742556808,5.81675917,4717.4,4717.3,5.146]
[1757742559374,5.81675917,4717.4,4717.3,5.4488]
[1757742559569,5.81675917,4717.4,4717.3,8.1009]
[1757742560213,5.81675917,4717.4,4717.3,5.146]
[1757742563090,5.81675917,4717.4,4717.3,1.625]
[1757742563284,5.81675917,4717.4,4717.3,5.145]
[1757742563807,5.81675917,4717.4,4717.3,7.3377]
[1757742564111,5.81675917,4717.4,4717.3,7.7971]
[1757742564491,5.81675917,4717.4,4717.3,5.145]
[1757742565875,5.81675917,4717.4,4717.3,7.3377]
[1757742566075,5.81675917,4717.4,4717.3,4.5799]
[1757742566395,5.81675917,4717.4,4717.3,8.0999]
[1757742568189,5.81675917,4717.4,4717.3,7.7971]
[1757742568604,5.81675917,4717.4,4717.3,8.093]
[1757742571619,5.81675917,4717.4,4717.3,7.7971]
[1757742573135,5.81675917,4717.4,4717.3,8.093]
[1757742581172,5.18089719,4717.4,4717.3,8.093]
[1757742584316,0.794,4717.4,4717.3,11.093]
[1757742593939,0.794,4717.4,4717.3,4.625]
[1757742594135,0.794,4717.4,4717.3,8.144]
[1757742596482,0.794,4717.4,4717.3,4.625]
[1757742596778,0.794,4717.4,4717.3,8.144]
[1757742597382,2.95389719,4717.4,4717.3,8.144]
[1757742599780,9.43645229,4717.4,4717.1,0.001]
[1757742600275,9.43645229,4717.4,4717.2,3.528]
[1757742600667,9.43645229,4717.4,4717.3,3.528]
[1757742602245,3.019,4717.2,4717.1,0.001]
[1757742602446,5.17889719,4717.2,4717.1,6.529]
[1757742602872,6.17889719,4717.2,4717.1,3.529]
[1757742603186,6.8148306,4717.2,4717.1,3.529]
[1757742603371,6.8148306,4717.2,4717.1,0.001]
[1757742604351,10.3418306,4717.2,4717.1,0.001]
[1757742605476,6.8148306,4717.2,4717.1,0.001]
[1757742605690,13.96157897,4717.2,4717.1,0.001]
[1757742606489,12.96157897,4717.2,4717.1,0.001]
[1757742606901,13.96157897,4717.2,4717.1,0.001]
[1757742608095,5.8148306,4717.2,4717.1,2.3241]
[1757742608482,5.8148306,4717.2,4717.1,0.001]
[1757742608683,6.8148306,4717.2,4717.1,0.001]
[1757742609802,5.8148306,4717.2,4717.1,0.001]
[1757742609969,5.8148306,4717.2,4717.1,3.0407]
[1757742610174,6.8148306,4717.2,4717.1,3.0407]
[1757742610575,6.8148306,4717.2,4717.1,0.001]
[1757742610818,5.8148306,4717.2,4717.1,3.0407]
[1757742611177,5.8148306,4717.2,4717.1,2.7554]
[1757742611812,5.8148306,4717.2,4717.1,3.0407]
[1757742612492,5.8148306,4717.2,4717.1,2.3241]
[1757742613014,5.8148306,4717.2,4717.1,2.7554]
[1757742613604,5.8148306,4717.2,4717.1,3.0407]
[1757742613930,5.8148306,4717.2,4717.1,2.7554]
[1757742614535,5.8148306,4717.2,4717.1,6.2804]
[1757742615728,5.8148306,4717.2,4717.1,6.5831]
[1757742616620,5.17889719,4717.2,4717.1,6.5831]
[1757742617042,2.15989719,4717.2,4717.1,6.5831]
[1757742617239,1.42786872,4717.3,4717.1,6.5831]
[1757742617556,0.792,4717.3,4717.2,2.6113]
[1757742617952,0.792,4717.3,4717.2,2.914]
[1757742621747,3.019,4717.3,4717.2,2.914]
[1757742622083,5.17889719,4717.3,4717.2,2.914]
[1757742630012,0.002,4717.4,4717.2,5.914]
[1757742630152,0.002,4717.4,4717.3,6.522]
[1757742630352,0.794,4717.4,4717.3,9.1333]
[1757742630697,0.794,4717.4,4717.3,9.436]
[1757742631683,3.021,4717.4,4717.3,9.436]
[1757742631857,0.794,4717.4,4717.3,9.436]
[1757742642728,0.794,4717.4,4717.3,39.436]
[1757742651361,0.794,4717.4,4717.3,9.436]
[1757742651583,0.794,4717.4,4717.3,39.436]
[1757742654452,0.002,4717.4,4717.3,39.73790414]
[1757742654657,0.794,4717.4,4717.3,35.74610414]
[1757742654857,0.794,4717.4,4717.3,39.4201]
[1757742655765,0.794,4717.4,4717.3,38.6605]
[1757742656165,0.794,4717.4,4717.3,33.0]
[1757742656360,0.794,4717.4,4717.3,36.519]
[1757742656817,0.794,4717.4,4717.3,33.0]
[1757742656980,0.794,4717.4,4717.3,36.519]
[1757742657699,0.794,4717.4,4717.3,38.7434]
[1757742658066,0.794,4717.4,4717.3,39.2003]
[1757742663835,0.794,4717.4,4717.3,39.5007]
[1757742664991,0.794,4717.4,4717.3,39.80260414]
[1757742665386,0.002,4717.4,4717.3,39.80260414]
[1757742665593,0.002,4717.4,4717.3,40.04433269]
[1757742665878,0.002,4717.4,4717.3,39.98295569]
[1757742666585,0.002,4717.4,4717.3,40.61858325]
[1757742668020,0.002,4717.4,4717.3,40.07495056]
[1757742670546,0.002,4717.4,4717.3,10.07495056]
[1757742670699,0.002,4717.4,4717.3,40.07495056]
[1757742670896,0.002,4717.4,4717.3,10.07495056]
[1757742671097,0.002,4717.4,4717.3,40.07495056]
[1757742672057,0.002,4717.4,4717.3,40.3768547]
[1757742672699,0.794,4717.4,4717.3,40.3768547]
[1757742674197,0.002,4717.4,4717.3,40.3768547]
[1757742674436,0.002,4717.4,4717.3,40.61858325]
[1757742675135,0.002,4717.4,4717.3,40.3768547]
[1757742679070,0.002,4717.4,4717.3,36.8578547]
[1757742679235,0.002,4717.4,4717.3,40.3758547]
[1757742679760,0.1076,4717.4,4717.3,40.61758325]
[1757742683704,0.1076,4717.4,4717.3,40.61858325]
[1757742684872,0.1076,4717.4,4717.3,10.61858325]
[1757742685298,0.1076,4717.4,4717.3,40.61858325]
[1757742689441,0.002,4717.4,4717.3,40.3768547]
[1757742690240,0.002,4717.4,4717.3,10.3768547]
[1757742690604,0.002,4717.4,4717.3,40.3768547]
[1757742692344,0.002,4717.4,4717.3,10.3768547]
[1757742692734,0.002,4717.4,4717.3,40.3768547]
[1757742693336,0.002,4717.4,4717.3,10.3768547]
[1757742693849,0.002,4717.4,4717.3,40.3768547]
[1757742697350,0.002,4717.4,4717.3,10.3768547]
[1757742697860,0.002,4717.4,4717.3,40.3768547]
[1757742702775,0.002,4717.4,4717.3,42.53675189]
[1757742703079,0.002,4717.4,4717.3,40.3768547]
[1757742705181,0.002,4717.4,4717.3,36.8588547]
[1757742705387,0.002,4717.4,4717.3,40.3758547]
[1757742709719,0.002,4717.4,4717.3,10.3758547]
[1757742709878,0.002,4717.4,4717.3,15.4558547]
[1757742710068,0.002,4717.4,4717.3,45.4558547]
[1757742716900,0.002,4717.4,4717.3,15.1554547]
[1757742717422,0.002,4717.4,4717.3,45.1554547]
[1757742718529,0.002,4717.4,4717.3,41.6384547]
[1757742718739,0.002,4717.4,4717.3,45.1554547]
[1757742720036,0.002,4717.4,4717.3,42.17225056]
[1757742723100,0.002,4717.4,4717.3,45.2249547]
[1757742723307,0.002,4717.4,4717.3,45.46668325]
[1757742724038,0.002,4717.4,4717.3,15.16477911]
[1757742724462,0.002,4717.4,4717.3,45.16477911]
[1757742725256,0.002,4717.4,4717.3,45.46668325]
[1757742727037,0.002,4717.4,4717.3,44.9186547]
[1757742729253,0.002,4717.4,4717.3,46.5436547]
[1757742731353,0.002,4717.4,4717.3,44.0981547]
[1757742731717,0.002,4717.4,4717.3,43.79625056]
[1757742738590,0.002,4717.4,4717.3,13.79625056]
[1757742739080,0.002,4717.4,4717.3,43.79625056]
[1757742739278,0.002,4717.4,4717.3,46.37615056]
[1757742739579,0.002,4717.4,4717.3,46.68115056]
[1757742740768,0.002,4717.4,4717.3,46.9830547]
[1757742740947,0.002,4717.4,4717.3,47.22478325]
[1757742742651,0.002,4717.4,4717.3,17.22478325]
[1757742743074,0.002,4717.4,4717.3,47.22478325]
[1757742743666,0.002,4717.4,4717.3,17.22478325]
[1757742744188,0.002,4717.4,4717.3,47.22478325]
[1757742746611,0.002,4717.4,4717.3,47.33038325]
[1757742747995,0.002,4717.4,4717.3,47.0886547]
[1757742750902,0.002,4717.4,4717.3,17.0886547]
[1757742751102,0.002,4717.4,4717.3,47.0886547]
[1757742754913,0.002,4717.4,4717.3,17.0886547]
[1757742755449,0.002,4717.4,4717.3,47.0886547]
[1757742758091,0.002,4717.4,4717.3,47.33038325]
[1757742761039,0.002,4717.4,4717.3,17.33038325]
[1757742761426,0.002,4717.4,4717.3,47.33038325]
[1757742766107,0.002,4717.4,4717.3,17.33038325]
[1757742766325,0.002,4717.4,4717.3,19.06362158]
[1757742766536,0.002,4717.4,4717.3,49.06362158]
[1757742767629,0.002,4717.4,4717.3,48.82189303]
[1757742770164,0.002,4717.4,4717.3,48.51998889]
[1757742770363,0.002,4717.4,4717.3,48.82189303]
[1757742774330,0.002,4717.4,4717.3,49.06362158]
[1757742781466,0.002,4717.4,4717.3,18.51998889]
[1757742781907,0.002,4717.4,4717.3,48.51998889]
[1757742782481,0.002,4717.4,4717.3,18.51998889]
[1757742782683,0.002,4717.4,4717.3,18.80761494]
[1757742782889,0.002,4717.4,4717.3,48.80761494]
[1757742783616,0.002,4717.4,4717.3,45.59351908]
[1757742783818,0.002,4717.4,4717.3,49.10751908]
[1757742786700,0.002,4717.4,4717.3,45.59351908]
[1757742787021,0.002,4717.4,4717.3,49.10751908]
[1757742791757,0.002,4717.4,4717.3,19.10751908]
[1757742792270,0.002,4717.4,4717.3,49.10751908]
[1757742794363,0.002,4717.4,4717.3,42.70861908]
[1757742794514,0.002,4717.4,4717.3,49.00951908]
[1757742799830,0.002,4717.4,4717.3,55.10451908]
[1757742800154,0.002,4717.4,4717.3,54.80261494]
[1757742800319,0.002,4717.4,4717.3,25.10451908]
[1757742800721,0.002,4717.4,4717.3,55.10451908]
[1757742801019,0.002,4717.4,4717.3,25.10451908]
[1757742801219,0.002,4717.4,4717.3,55.10451908]
[1757742801841,0.002,4717.4,4717.3,52.31761908]
[1757742802042,0.002,4717.4,4717.3,46.94962756]
[1757742802483,0.002,4717.4,4717.3,49.94962756]
[1757742802652,0.002,4717.4,4717.3,46.94962756]
[1757742802984,0.002,4717.4,4717.3,49.94962756]
[1757742804379,0.002,4717.4,4717.3,19.94962756]
[1757742804760,0.002,4717.4,4717.3,49.94962756]
[1757742804958,0.002,4717.4,4717.3,19.94962756]
[1757742805262,0.002,4717.4,4717.3,50.2515317]
[1757742806480,0.002,4717.4,4717.3,20.2515317]
[1757742806682,0.002,4717.4,4717.3,50.2515317]
[1757742807783,0.002,4717.4,4717.3,50.53915775]
[1757742808350,2.16189719,4717.4,4717.3,37.34162756]
[1757742808548,2.16189719,4717.4,4717.3,40.219]
[1757742808885,2.16189719,4717.4,4717.3,43.219]
[1757742811764,2.95389719,4717.4,4717.3,39.706]
[1757742811965,2.95389719,4717.4,4717.3,36.706]
[1757742812278,2.95389719,4717.4,4717.3,43.22]
[1757742815784,2.95389719,4717.4,4717.3,13.22]
[1757742816179,2.95389719,4717.4,4717.3,43.22]
[1757742816363,2.95389719,4717.4,4717.3,40.22]
[1757742816569,2.95389719,4717.4,4717.3,43.22]
[1757742818800,2.95389719,4717.4,4717.3,39.706]
[1757742819097,2.95389719,4717.4,4717.3,43.22]
[1757742821817,2.95389719,4717.4,4717.3,8.14]
[1757742827983,2.95389719,4717.4,4717.3,8.141]
[1757742828385,2.95389719,4717.4,4717.3,4.626]
[1757742828584,2.95389719,4717.4,4717.3,8.141]
[1757742830290,2.95389719,4717.4,4717.3,38.141]
[1757742831505,2.16189719,4717.4,4717.3,38.4262]
[1757742831711,2.16189719,4717.4,4717.3,40.7477]
[1757742831881,0.002,4717.4,4717.3,40.7477]